bitfinex-derivatives/quotes_BTCF0:USTF0_20250208
["timestamp","ask_amount","ask_price","bid_price","bid_amount"]
[1739007008718,0.10176013,96243.0,96242.0,0.001]
[1739007013016,0.2078524,96227.0,96219.0,0.22632276]
[1739007013231,0.5686524,96227.0,96219.0,0.22632276]
[1739007013431,0.0625,96226.0,96219.0,0.22632276]
[1739007013732,0.2078606,96223.0,96219.0,0.21620002]
[1739007013933,0.0315,96222.0,96219.0,2e-08]
[1739007014725,0.2078663,96221.0,96219.0,2e-08]
[1739007017026,0.2078663,96221.0,96219.0,0.20786802]
[1739007021734,5.217e-05,96220.0,96219.0,0.20786802]
[1739007033233,0.20791457,96220.0,96219.0,0.20786802]
[1739007041148,0.20791457,96220.0,96219.0,2e-08]
[1739007042036,0.21853179,96220.0,96219.0,2e-08]
[1739007048546,0.20791457,96220.0,96219.0,2e-08]
[1739007056565,0.56871457,96220.0,96219.0,2e-08]
[1739007062561,0.61926476,96220.0,96219.0,2e-08]
[1739007062766,0.98006476,96220.0,96219.0,2e-08]
[1739007064069,0.98006476,96220.0,96192.0,0.28047696]
[1739007064070,1.07220236,96220.0,96192.0,0.28047696]
[1739007064263,0.2079192,96193.0,96192.0,0.24797696]
[1739007065665,0.2079256,96190.0,96186.0,0.24797696]
[1739007066771,0.2079256,96190.0,96186.0,0.25836368]
[1739007067466,0.2079256,96190.0,96189.0,0.01955915]
[1739007080176,0.00015592,96202.0,96193.0,0.2079169]
[1739007080388,0.2079033,96200.0,96192.0,0.3608]
[1739007080593,0.00015592,96202.0,96198.0,0.207907]
[1739007081499,0.00015592,96202.0,96193.0,0.093]
[1739007082004,0.00015592,96202.0,96200.0,0.2079023]
[1739007083185,0.00015592,96202.0,96200.0,0.2129023]
[1739007083902,0.00015592,96202.0,96200.0,0.2179023]
[1739007086199,0.00015592,96202.0,96200.0,0.22824091]
[1739007098103,4.545e-05,96201.0,96200.0,0.22824091]
[1739007104303,4.545e-05,96201.0,96200.0,0.4142515]
[1739007108313,4.545e-05,96201.0,96200.0,0.22824091]
[1739007108819,4.545e-05,96201.0,96200.0,0.2179023]
[1739007112510,4.545e-05,96201.0,96200.0,0.01]
[1739007112819,0.20794495,96201.0,96200.0,0.01]
[1739007113605,0.20794495,96201.0,96199.0,0.18650728]
[1739007113606,0.56874495,96201.0,96199.0,0.18650728]
[1739007114711,0.56874495,96201.0,96199.0,0.19250728]
[1739007115320,0.56874495,96201.0,96199.0,0.19750728]
[1739007116620,0.56874495,96201.0,96199.0,0.011]
[1739007119123,0.20794495,96201.0,96199.0,0.011]
[1739007120918,4.545e-05,96201.0,96200.0,0.2079104]
[1739007121923,4.545e-05,96201.0,96200.0,0.005]
[1739007123628,4.545e-05,96201.0,96200.0,0.01]
[1739007124226,4.545e-05,96201.0,96200.0,0.2262]
[1739007136536,4.545e-05,96201.0,96200.0,0.4341027]
[1739007149137,4.545e-05,96201.0,96200.0,0.7949027]
[1739007151241,4.545e-05,96201.0,96200.0,0.4341027]
[1739007154168,4.545e-05,96201.0,96200.0,0.01]
[1739007155661,0.57919018,96201.0,96200.0,0.01]
[1739007161265,0.56875365,96201.0,96200.0,0.01]
[1739007165875,0.20795365,96201.0,96200.0,0.01]
[1739007166883,0.20795365,96201.0,96200.0,0.02047647]
[1739007167068,0.20795365,96201.0,96200.0,0.01]
[1739007167268,4.545e-05,96201.0,96200.0,0.01]
[1739007169774,4.545e-05,96201.0,96200.0,0.02034672]
[1739007173677,0.00015592,96202.0,96200.0,0.02034672]
[1739007175181,0.00015592,96202.0,96200.0,0.01534672]
[1739007175378,0.00015592,96202.0,96200.0,0.02034672]
[1739007175989,4.545e-05,96201.0,96200.0,0.02034672]
[1739007176586,4.545e-05,96201.0,96200.0,0.01534672]
[1739007176794,4.545e-05,96201.0,96200.0,0.02034672]
[1739007177687,4.545e-05,96201.0,96200.0,0.01534672]
[1739007177908,4.545e-05,96201.0,96200.0,0.02034672]
[1739007183583,4.545e-05,96201.0,96200.0,0.08414672]
[1739007183787,4.545e-05,96201.0,96200.0,0.30034672]
[1739007183987,4.545e-05,96201.0,96200.0,0.66114672]
[1739007184578,0.15571783,96215.0,96200.0,0.71311952]
[1739007184784,0.15571783,96215.0,96214.0,0.3608]
[1739007185398,0.15571783,96215.0,96214.0,0.5686613]
[1739007187294,0.15771783,96215.0,96214.0,0.2078613]
[1739007187497,0.15771783,96215.0,96214.0,0.5686613]
[1739007188089,0.15771783,96215.0,96214.0,0.5706613]
[1739007188291,0.2078528,96218.0,96214.0,0.3638]
[1739007188592,0.2078528,96218.0,96216.0,0.2078557]
[1739007189901,0.0962,96219.0,96218.0,0.2078527]
[1739007191100,0.0313,96219.0,96218.0,0.2078527]
[1739007191397,0.0323,96219.0,96218.0,0.2078527]
[1739007207216,0.2401684,96219.0,96218.0,0.2078527]
[1739007208515,0.2401684,96219.0,96218.0,0.39387582]
[1739007212110,0.2401684,96219.0,96218.0,0.18602312]
[1739007215712,0.2401684,96219.0,96215.0,0.39389962]
[1739007215713,0.0323,96219.0,96215.0,0.39389962]
[1739007216018,0.2078738,96217.0,96215.0,0.39389962]
[1739007216421,0.2078749,96216.0,96215.0,0.39389962]
[1739007216917,0.2078749,96216.0,96215.0,0.39489962]
[1739007217414,0.2078749,96216.0,96215.0,0.39389962]
[1739007217609,0.2078749,96216.0,96215.0,0.39489962]
[1739007218013,0.2078749,96216.0,96215.0,0.18702312]
[1739007220718,0.5686749,96216.0,96215.0,0.18702312]
[1739007223122,0.2078749,96216.0,96215.0,0.18702312]
[1739007223922,0.2078749,96216.0,96215.0,0.001]
[1739007234226,0.2078749,96216.0,96215.0,0.2088768]
[1739007235320,0.20942494,96221.0,96220.0,0.207866]
[1739007236519,0.21142494,96221.0,96220.0,0.207866]
[1739007236723,0.00355944,96221.0,96220.0,0.207866]
[1739007237333,0.21142324,96221.0,96220.0,0.207866]
[1739007238737,0.21142324,96221.0,96220.0,0.21841448]
[1739007239737,0.21142324,96221.0,96220.0,0.4044376]
[1739007242337,0.21142324,96221.0,96220.0,0.39388912]
[1739007247241,0.21142324,96221.0,96220.0,0.207866]
[1739007253940,0.21142324,96221.0,96220.0,0.202866]
[1739007260636,0.21142324,96221.0,96217.0,0.24827155]
[1739007260844,0.2078705,96218.0,96217.0,0.24827155]
[1739007262839,0.2078705,96218.0,96217.0,0.24927155]
[1739007263245,0.2078705,96218.0,96217.0,0.24827155]
[1739007263448,0.2078705,96218.0,96217.0,0.24927155]
[1739007264142,0.2078705,96218.0,96217.0,0.001]
[1739007277361,0.2397705,96218.0,96217.0,0.001]
[1739007278363,0.2699705,96218.0,96217.0,0.001]
[1739007280361,0.2078722,96217.0,96216.0,0.1863454]
[1739007280670,0.2389722,96217.0,96216.0,0.1863454]
[1739007281858,0.5997722,96217.0,96216.0,0.1863454]
[1739007282561,0.6007722,96217.0,96216.0,0.1863454]
[1739007282956,0.3929,96217.0,96211.0,0.2078848]
[1739007283165,0.207883,96212.0,96211.0,0.2078848]
[1739007284166,0.207883,96212.0,96211.0,0.2088848]
[1739007285773,0.207883,96212.0,96211.0,0.001]
[1739007286263,0.40303956,96217.0,96211.0,0.001]
[1739007286472,0.2078829,96212.0,96211.0,0.003]
[1739007286667,0.2078829,96212.0,96211.0,0.25027155]
[1739007286969,0.2078829,96212.0,96211.0,0.25227155]
[1739007288367,0.2078829,96212.0,96211.0,0.24827155]
[1739007288566,0.2078829,96212.0,96211.0,0.25027155]
[1739007289273,0.2078829,96212.0,96211.0,0.25227155]
[1739007290066,0.2078829,96212.0,96211.0,0.004]
[1739007294869,0.2078829,96212.0,96211.0,0.002]
[1739007295074,0.2078829,96212.0,96211.0,0.003]
[1739007298368,0.2078829,96212.0,96211.0,0.002]
[1739007298573,0.2078829,96212.0,96211.0,0.003]
[1739007298773,0.2078829,96212.0,96211.0,0.002]
[1739007299169,0.2078829,96212.0,96211.0,0.001]
[1739007300082,0.5686829,96212.0,96211.0,0.001]
[1739007302076,0.5686822,96212.0,96211.0,0.001]
[1739007304073,0.2078822,96212.0,96211.0,0.001]
[1739007304381,0.2078822,96212.0,96210.0,0.18624315]
[1739007304382,0.2078839,96211.0,96210.0,0.18624315]
[1739007305691,0.2078947,96206.0,96205.0,0.18639907]
[1739007307787,0.2078947,96206.0,96205.0,0.18839907]
[1739007308175,0.2078947,96206.0,96205.0,0.19139907]
[1739007310480,0.21841162,96206.0,96205.0,0.19139907]
[1739007314278,0.21841162,96206.0,96205.0,0.00515592]
[1739007314988,0.2078947,96206.0,96205.0,0.00515592]
[1739007328292,0.5686947,96206.0,96205.0,0.00515592]
[1739007337400,0.5686947,96206.0,96205.0,0.00215592]
[1739007337607,0.5686947,96206.0,96205.0,0.00115592]
[1739007338293,0.5706947,96206.0,96205.0,0.00115592]
[1739007338497,0.5706947,96206.0,96205.0,0.00315592]
[1739007338996,0.5716947,96206.0,96205.0,0.00015592]
[1739007340000,0.5696947,96206.0,96205.0,0.00015592]
[1739007340203,0.5706947,96206.0,96205.0,0.00015592]
[1739007340897,0.5696947,96206.0,96205.0,0.00015592]
[1739007341097,0.5706947,96206.0,96205.0,0.00015592]
[1739007341793,0.5706947,96206.0,96196.0,0.1878023]
[1739007341794,0.2079141,96197.0,96196.0,0.1878023]
[1739007342510,0.3005141,96197.0,96196.0,0.1878023]
[1739007344003,0.3005141,96197.0,96196.0,0.1888023]
[1739007345406,0.31100635,96197.0,96196.0,0.1888023]
[1739007345614,0.31100635,96197.0,96196.0,0.00255915]
[1739007349512,0.67180635,96197.0,96196.0,0.00255915]
[1739007350610,0.31100635,96197.0,96196.0,0.001]
[1739007350802,0.67180635,96197.0,96196.0,0.001]
[1739007360613,0.5687141,96197.0,96196.0,0.001]
[1739007369820,0.2079141,96197.0,96196.0,0.001]
[1739007370025,0.5687141,96197.0,96196.0,0.001]
[1739007370615,0.5687141,96197.0,96196.0,0.00095455]
[1739007393839,0.61927754,96197.0,96196.0,0.00095455]
[1739007396938,0.25847754,96197.0,96196.0,0.00095455]
[1739007397133,0.98007754,96197.0,96196.0,0.00095455]
[1739007400531,1.16703448,96197.0,96196.0,0.00095455]
[1739007404034,0.98007754,96197.0,96196.0,0.00095455]
[1739007405349,1.04911754,96197.0,96196.0,0.00095455]
[1739007408350,0.9985541,96197.0,96196.0,0.00095455]
[1739007416552,1.15996358,96197.0,96196.0,0.00095455]
[1739007423554,1.29220595,96197.0,96196.0,0.00095455]
[1739007426951,1.04911645,96197.0,96196.0,0.00095455]
[1739007429455,0.2079479,96180.0,96179.0,0.18624315]
[1739007429647,0.9985479,96180.0,96179.0,0.18624315]
[1739007430561,0.9985479,96180.0,96178.0,0.18624315]
[1739007430762,0.0314,96179.0,96178.0,0.18624315]
[1739007431764,0.0314,96179.0,96178.0,0.19424315]
[1739007433056,0.0314,96179.0,96178.0,0.20324315]
[1739007434570,0.2393493,96179.0,96178.0,0.20324315]
[1739007436060,0.40336122,96179.0,96178.0,0.017]
[1739007437670,1.12496122,96179.0,96178.0,0.017]
[1739007438869,0.9609493,96179.0,96178.0,0.017]
[1739007439376,0.2393493,96179.0,96178.0,0.017]
[1739007439674,0.9609493,96179.0,96178.0,0.017]
[1739007440373,0.2393493,96179.0,96178.0,0.017]
[1739007440567,0.9609493,96179.0,96178.0,0.017]
[1739007441274,0.2393493,96179.0,96178.0,0.017]
[1739007441474,0.9609493,96179.0,96178.0,0.017]
[1739007442566,0.2393493,96179.0,96178.0,0.017]
[1739007442873,0.9609493,96179.0,96178.0,0.017]
[1739007444365,0.2393493,96179.0,96178.0,0.017]
[1739007444675,0.9609493,96179.0,96178.0,0.017]
[1739007445976,0.9295493,96179.0,96178.0,0.017]
[1739007447279,0.9985493,96179.0,96178.0,0.017]
[1739007447666,0.6377493,96179.0,96178.0,0.017]
[1739007448762,0.4298,96179.0,96178.0,0.017]
[1739007448969,0.3608,96179.0,96178.0,0.2249502]
[1739007452166,0.2079326,96186.0,96178.0,0.2249502]
[1739007452470,0.5687326,96186.0,96178.0,0.2249502]
[1739007453178,0.5687326,96186.0,96178.0,0.2159502]
[1739007453381,0.5687326,96186.0,96178.0,0.2249502]
[1739007454082,0.207938,96185.0,96178.0,0.2249502]
[1739007454782,0.3608,96186.0,96178.0,0.2249502]
[1739007455083,0.3608,96186.0,96178.0,0.2169502]
[1739007455289,0.3608,96186.0,96178.0,0.2249502]
[1739007456169,0.2079449,96182.0,96178.0,0.2159502]
[1739007456382,0.2079449,96182.0,96178.0,0.2249502]
[1739007458686,0.3608,96186.0,96178.0,0.2249502]
[1739007459687,0.3608,96186.0,96178.0,0.2159502]
[1739007459885,0.3608,96186.0,96178.0,0.2249502]
[1739007460277,0.2079495,96180.0,96178.0,0.2249502]
[1739007465882,0.3608,96186.0,96178.0,0.2249502]
[1739007466085,0.2079509,96179.0,96178.0,0.2249502]
[1739007467483,0.2079509,96179.0,96178.0,0.017]
[1739007467980,0.2079509,96179.0,96178.0,0.008]
[1739007468185,0.2079509,96179.0,96178.0,0.017]
[1739007468578,0.2079509,96179.0,96178.0,0.2249453]
[1739007471895,0.2079509,96179.0,96178.0,0.017]
[1739007476588,0.2079509,96179.0,96178.0,0.2249535]
[1739007478987,0.2079509,96179.0,96178.0,0.41119665]
[1739007483397,0.2079509,96179.0,96178.0,0.47322505]
[1739007486092,0.2079509,96179.0,96178.0,0.2249535]
[1739007497207,0.5687384,96185.0,96180.0,0.2079474]
[1739007497597,0.2079384,96185.0,96180.0,0.2079474]
[1739007497806,0.2079406,96184.0,96180.0,0.2079474]
[1739007498504,0.2079406,96184.0,96180.0,0.2149474]
[1739007499403,0.2079406,96184.0,96180.0,0.2229474]
[1739007501913,0.2079406,96184.0,96180.0,0.47154987]
[1739007509620,0.2079406,96184.0,96180.0,0.2229474]
[1739007519320,0.2079425,96183.0,96180.0,0.2229474]
[1739007520931,0.2079425,96183.0,96180.0,0.2159474]
[1739007521132,0.2079425,96183.0,96180.0,0.2229474]
[1739007522128,0.207944,96182.0,96180.0,0.2229474]
[1739007523335,0.207944,96182.0,96180.0,0.015]
[1739007523723,0.207944,96182.0,96180.0,0.007]
[1739007524030,0.207944,96182.0,96180.0,0.008]
[1739007524225,0.207944,96182.0,96180.0,0.015]
[1739007529439,0.207944,96182.0,96180.0,0.20149566]
[1739007533433,0.2079456,96181.0,96180.0,0.20149566]
[1739007534636,0.2079456,96181.0,96180.0,0.19449566]
[1739007534835,0.2079456,96181.0,96180.0,0.20149566]
[1739007536541,0.2079456,96181.0,96180.0,0.40944336]
[1739007536731,0.1557702,96187.0,96184.0,0.2079375]
[1739007536935,0.1557702,96187.0,96185.0,0.2079366]
[1739007538326,0.5693707,96188.0,96185.0,0.2129366]
[1739007538544,0.5687307,96188.0,96185.0,0.2129366]
[1739007538741,0.5687307,96188.0,96185.0,0.2179366]
[1739007540240,0.5687307,96188.0,96185.0,0.2129366]
[1739007540444,0.5687307,96188.0,96185.0,0.2179366]
[1739007540631,0.5687307,96188.0,96185.0,0.2189366]
[1739007540941,0.5687307,96188.0,96185.0,0.2169366]
[1739007541435,0.5687307,96188.0,96185.0,0.2109366]
[1739007541641,0.5687307,96188.0,96185.0,0.2139366]
[1739007541842,0.5687307,96188.0,96187.0,0.1864203]
[1739007543237,0.5687307,96188.0,96187.0,0.1894203]
[1739007543740,0.5687307,96188.0,96187.0,0.1904203]
[1739007544536,0.5687307,96188.0,96187.0,0.1894203]
[1739007545540,0.7245009,96188.0,96187.0,0.003]
[1739007546140,0.7245009,96188.0,96187.0,0.001]
[1739007546346,0.7245009,96188.0,96187.0,0.003]
[1739007547536,0.3637009,96188.0,96187.0,0.003]
[1739007548547,0.3637009,96188.0,96187.0,0.002]
[1739007549242,0.25849051,96188.0,96187.0,0.002]
[1739007549440,0.25849051,96188.0,96185.0,0.2079366]
[1739007549637,0.25849051,96188.0,96187.0,0.001]
[1739007550648,0.25849051,96188.0,96185.0,0.2099366]
[1739007551852,0.25849051,96188.0,96185.0,0.3963569]
[1739007551853,0.2079307,96188.0,96185.0,0.3963569]
[1739007552355,0.2079307,96188.0,96185.0,0.3943569]
[1739007552947,0.2079307,96188.0,96185.0,0.3953569]
[1739007558974,0.05055992,96187.0,96185.0,0.2089366]
[1739007561271,0.25849242,96187.0,96185.0,0.2089366]
[1739007561870,0.2079332,96186.0,96185.0,0.001]
[1739007563077,0.2079332,96186.0,96178.0,0.2162]
[1739007563078,0.05055992,96187.0,96178.0,0.2162]
[1739007563278,0.2079331,96186.0,96185.0,0.001]
[1739007565268,0.2079383,96184.0,96178.0,0.004]
[1739007565877,0.2079399,96183.0,96176.0,0.2079532]
[1739007566077,0.3608,96185.0,96176.0,0.2079532]
[1739007566282,0.2079416,96182.0,96176.0,0.2079532]
[1739007566479,0.2079416,96182.0,96178.0,0.004]
[1739007566781,0.2079438,96181.0,96178.0,0.008]
[1739007566977,0.2079438,96181.0,96178.0,0.004]
[1739007567280,0.2079465,96180.0,96178.0,0.004]
[1739007567873,0.3608,96185.0,96178.0,0.004]
[1739007568075,0.2079479,96179.0,96178.0,0.004]
[1739007568279,0.2079479,96179.0,96176.0,0.2129532]
[1739007568570,0.2079479,96179.0,96178.0,0.008]
[1739007582596,0.2079479,96179.0,96178.0,0.2159542]
[1739007589107,0.2079479,96179.0,96178.0,0.46455667]
[1739007593099,0.2079479,96179.0,96178.0,0.2159542]
[1739007594105,0.2079479,96179.0,96178.0,0.008]
[1739007609307,0.2079479,96179.0,96178.0,0.2159434]
[1739007611211,0.01037245,96187.0,96178.0,0.2159434]
[1739007611212,0.2079531,96182.0,96178.0,0.008]
[1739007611511,0.2079516,96181.0,96178.0,0.008]
[1739007611714,0.2079558,96179.0,96178.0,0.008]
[1739007612210,0.2079558,96179.0,96178.0,0.19428163]
[1739007613312,0.2079558,96179.0,96178.0,0.19028163]
[1739007613507,0.2079558,96179.0,96178.0,0.19428163]
[1739007615609,0.2079558,96179.0,96178.0,0.008]
[1739007616204,0.2079558,96179.0,96178.0,0.004]
[1739007616398,0.2079558,96179.0,96178.0,0.008]
[1739007616907,0.5687558,96179.0,96178.0,0.008]
[1739007618207,0.5687558,96179.0,96178.0,0.005]
[1739007618710,0.5687558,96179.0,96178.0,0.004]
[1739007618911,0.5727558,96179.0,96178.0,0.004]
[1739007619107,0.3648,96179.0,96176.0,0.18628163]
[1739007619315,0.2079563,96177.0,96176.0,0.18628163]
[1739007620017,0.1631,96178.0,96170.0,0.13636005]
[1739007620018,0.2079693,96171.0,96170.0,0.13636005]
[1739007620314,0.5687693,96171.0,96170.0,0.13636005]
[1739007622506,0.5707693,96171.0,96170.0,0.13636005]
[1739007622909,0.5707693,96171.0,96170.0,0.00015592]
[1739007623217,0.5687693,96171.0,96170.0,0.00015592]
[1739007623411,0.5717693,96171.0,96170.0,0.00015592]
[1739007623812,0.5727693,96171.0,96170.0,0.00015592]
[1739007624014,0.5697693,96171.0,96170.0,0.00015592]
[1739007624215,0.5717693,96171.0,96170.0,0.00015592]
[1739007625403,0.58195117,96171.0,96170.0,0.00015592]
[1739007625812,0.58295117,96171.0,96170.0,0.00015592]
[1739007626509,0.58495117,96171.0,96170.0,0.00015592]
[1739007626915,0.58295117,96171.0,96170.0,0.00015592]
[1739007627116,0.63552632,96171.0,96170.0,0.00015592]
[1739007628007,0.63552632,96171.0,96141.0,0.40248163]
[1739007628008,0.42755702,96171.0,96141.0,0.40248163]
[1739007628218,0.568832,96142.0,96141.0,0.18628163]
[1739007629211,0.568832,96142.0,96141.0,0.19528163]
[1739007629609,0.568832,96142.0,96141.0,0.20328163]
[1739007630216,0.568832,96142.0,96141.0,0.19528163]
[1739007630424,0.568832,96142.0,96141.0,0.20328163]
[1739007631127,0.568832,96142.0,96141.0,0.017]
[1739007639831,0.3608,96142.0,96141.0,0.0503]
[1739007640531,0.20802,96148.0,96141.0,0.0503]
[1739007641932,0.20802,96148.0,96147.0,0.2080209]
[1739007643134,0.20802,96148.0,96147.0,0.2140209]
[1739007644424,0.20802,96148.0,96147.0,0.2210209]
[1739007647939,0.00015602,96151.0,96149.0,0.2080145]
[1739007648637,0.00015602,96151.0,96150.0,0.2080142]
[1739007650234,0.00015602,96151.0,96150.0,0.2130142]
[1739007651043,0.20816802,96151.0,96150.0,0.2130142]
[1739007652847,0.20816802,96151.0,96150.0,0.01]
[1739007659240,0.56896802,96151.0,96150.0,0.01]
[1739007671256,0.56896802,96151.0,96150.0,0.007]
[1739007671652,0.56896802,96151.0,96150.0,0.004]
[1739007676461,0.20816802,96151.0,96150.0,0.004]
[1739007676664,0.56896802,96151.0,96150.0,0.004]
[1739007681663,0.20816802,96151.0,96150.0,0.004]
[1739007687164,0.00015602,96151.0,96150.0,0.004]
[1739007696668,0.00015602,96151.0,96150.0,0.19028163]
[1739007701772,0.00015602,96151.0,96150.0,0.39827983]
[1739007704486,0.00015602,96151.0,96150.0,0.2119982]
[1739007718792,0.18574697,96161.0,96150.0,0.004]
[1739007718986,0.15554697,96161.0,96160.0,0.2079765]
[1739007720292,0.15654697,96161.0,96160.0,0.2079765]
[1739007721090,0.001,96161.0,96160.0,0.2079765]
[1739007722294,0.004,96161.0,96160.0,0.2079765]
[1739007724398,0.004,96161.0,96160.0,0.75515957]
[1739007727402,0.004,96161.0,96160.0,0.5687765]
[1739007732096,0.004,96161.0,96160.0,0.2079765]
[1739007734403,0.004,96161.0,96160.0,0.39418488]
[1739007740801,0.004,96161.0,96160.0,0.2079765]
[1739007760513,0.004,96161.0,96160.0,0.39454257]
[1739007763723,0.004,96161.0,96160.0,0.2079765]
[1739007770836,0.2079766,96160.0,96158.0,0.3099712]
[1739007771928,0.2099766,96160.0,96158.0,0.3099712]
[1739007772926,0.2109766,96160.0,96158.0,0.5179509]
[1739007774427,0.2109766,96160.0,96159.0,0.24873591]
[1739007778127,0.2109766,96160.0,96158.0,0.2079797]
[1739007778621,0.003,96160.0,96158.0,0.2079797]
[1739007778821,0.2079787,96159.0,96158.0,0.2079797]
[1739007780129,0.2089787,96159.0,96158.0,0.2079797]
[1739007781320,0.2109787,96159.0,96158.0,0.2079797]
[1739007790042,0.2109787,96159.0,96158.0,0.45671561]
[1739007791438,0.8717787,96159.0,96158.0,0.09903591]
[1739007791741,0.2079896,96154.0,96153.0,0.3099712]
[1739007791941,0.6374696,96154.0,96153.0,0.13601207]
[1739007792141,0.9374696,96154.0,96153.0,0.05441207]
[1739007792450,0.9374696,96154.0,96153.0,0.03193135]
[1739007792653,0.9374696,96154.0,96153.0,5e-08]
[1739007792853,0.2080025,96148.0,96147.0,0.37196544]
[1739007793052,0.5688025,96148.0,96147.0,0.37196544]
[1739007793350,0.8688025,96148.0,96147.0,0.37196544]
[1739007794144,0.2080177,96141.0,96140.0,0.18818197]
[1739007794652,0.2766977,96141.0,96140.0,0.18818197]
[1739007794848,0.2766977,96141.0,96140.0,0.18662192]
[1739007795954,0.2766977,96141.0,96140.0,0.19262192]
[1739007796138,0.2766977,96141.0,96140.0,0.19962192]
[1739007796339,0.2080177,96141.0,96140.0,0.19962192]
[1739007796554,0.2766977,96141.0,96140.0,0.19962192]
[1739007798450,0.2766977,96141.0,96140.0,0.013]
[1739007810463,0.6374977,96141.0,96140.0,0.013]
[1739007811663,0.5688177,96141.0,96140.0,0.013]
[1739007811966,0.00015602,96150.0,96140.0,0.3738]
[1739007812162,0.00585093,96158.0,96151.0,0.2079955]
[1739007812364,0.00585093,96158.0,96151.0,0.3608]
[1739007812560,0.2079919,96153.0,96151.0,0.3608]
[1739007813567,0.2079919,96153.0,96151.0,0.5687956]
[1739007814062,0.2079919,96153.0,96151.0,0.5697956]
[1739007814269,0.2079919,96153.0,96151.0,0.5717956]
[1739007814658,0.2079919,96153.0,96151.0,0.5697956]
[1739007814859,0.2079919,96153.0,96151.0,0.5717956]
[1739007816462,0.00015602,96162.0,96151.0,0.5717956]
[1739007816463,0.2079808,96159.0,96157.0,0.2079823]
[1739007817365,0.2079808,96159.0,96158.0,0.0315]
[1739007818365,0.2089808,96159.0,96158.0,0.0315]
[1739007818663,0.2099808,96159.0,96158.0,0.0315]
[1739007819063,0.2099808,96159.0,96158.0,0.0948]
[1739007819660,0.2089808,96159.0,96158.0,0.0948]
[1739007819867,0.2109808,96159.0,96158.0,0.0948]
[1739007827078,0.2109808,96159.0,96158.0,0.3027809]
[1739007828973,0.003,96159.0,96158.0,0.3027809]
[1739007846795,0.003,96159.0,96158.0,0.6635809]
[1739007850787,0.003,96159.0,96158.0,0.3027809]
[1739007850982,0.003,96159.0,96158.0,0.6635809]
[1739007858095,0.003,96159.0,96158.0,0.8797809]
[1739007866601,0.003,96159.0,96158.0,1.50377161]
[1739007870912,0.003,96159.0,96158.0,0.8797809]
[1739007873229,0.001,96159.0,96158.0,0.8797809]
[1739007873421,0.001,96159.0,96158.0,0.8837809]
[1739007873617,0.00015602,96162.0,96161.0,0.2079744]
[1739007874721,0.00015602,96162.0,96161.0,0.2109744]
[1739007875325,0.00015602,96162.0,96161.0,0.2139744]
[1739007876713,0.00015602,96162.0,96161.0,0.2244984]
[1739007883033,0.207951,96172.0,96161.0,0.016524]
[1739007883223,0.15592124,96176.0,96175.0,0.2079442]
[1739007885621,0.15792124,96176.0,96175.0,0.2079442]
[1739007886228,0.16192124,96176.0,96175.0,0.2079442]
[1739007886532,0.006,96176.0,96175.0,0.2079442]
[1739007888034,0.006,96176.0,96175.0,0.21815336]
[1739007893740,0.006,96176.0,96175.0,0.2079442]
[1739007910554,0.006,96176.0,96175.0,0.39421939]
[1739007911645,0.2139421,96176.0,96175.0,0.39421939]
[1739007915158,0.2139421,96176.0,96175.0,0.18627519]
[1739007918352,0.2139421,96176.0,96174.0,0.18627519]
[1739007919558,0.2129421,96176.0,96174.0,0.18627519]
[1739007921549,0.16092124,96176.0,96170.0,0.2079543]
[1739007921754,0.2079456,96175.0,96170.0,0.2079543]
[1739007921956,0.2079456,96175.0,96171.0,0.2079527]
[1739007922153,0.2079467,96174.0,96171.0,0.2079527]
[1739007922460,0.2079467,96174.0,96172.0,0.2079503]
[1739007923153,0.2079467,96174.0,96173.0,0.031]
[1739007923354,0.2079467,96174.0,96173.0,0.0939]
[1739007924145,0.2089467,96174.0,96173.0,0.0939]
[1739007924561,0.2109467,96174.0,96173.0,0.0939]
[1739007925163,0.2089467,96174.0,96173.0,0.0939]
[1739007925366,0.2119467,96174.0,96173.0,0.0939]
[1739007931156,0.2119467,96174.0,96173.0,0.28017519]
[1739007934558,0.2119467,96174.0,96173.0,0.18627519]
[1739007934763,0.6412667,96174.0,96173.0,0.18596315]
[1739007935665,0.9412667,96174.0,96173.0,0.18596315]
[1739007936059,0.2079572,96169.0,96168.0,0.2483133]
[1739007936262,0.2079572,96169.0,96161.0,0.30960485]
[1739007936263,0.2079702,96163.0,96162.0,0.30960485]
[1739007936457,0.5687702,96163.0,96162.0,0.30960485]
[1739007936663,0.8687702,96163.0,96162.0,0.30960485]
[1739007937871,0.8687702,96163.0,96162.0,0.31260485]
[1739007938364,0.8687702,96163.0,96162.0,0.31460485]
[1739007938760,0.8687702,96163.0,96162.0,0.20871935]
[1739007938971,0.6608,96163.0,96139.0,0.43441647]
[1739007939176,0.9296199,96140.0,96139.0,0.43389647]
[1739007939369,0.9981399,96140.0,96139.0,0.43389647]
[1739007940069,0.2080307,96135.0,96134.0,0.00056]
[1739007940271,0.2080307,96135.0,96132.0,0.24829273]
[1739007941670,0.2090307,96135.0,96133.0,0.00856031]
[1739007941875,0.2100307,96135.0,96133.0,0.01656031]
[1739007942873,0.06852,96134.0,96133.0,0.01656031]
[1739007944170,0.06852,96134.0,96133.0,0.00956031]
[1739007944377,0.06952,96134.0,96133.0,0.01656031]
[1739007944578,0.07052,96134.0,96133.0,0.01656031]
[1739007960677,0.2785529,96134.0,96133.0,0.01656031]
[1739007962783,0.2100329,96134.0,96133.0,0.01656031]
[1739007973499,0.26061857,96134.0,96133.0,0.01656031]
[1739007977992,0.41661408,96134.0,96133.0,0.01656031]
[1739007978701,0.41661408,96134.0,96133.0,0.00043702]
[1739007979895,0.77741408,96134.0,96133.0,0.00043702]
[1739007980400,0.62141857,96134.0,96133.0,0.00043702]
[1739007981303,0.41338567,96134.0,96126.0,0.03]
[1739007981603,0.208048,96127.0,96126.0,0.03]
[1739007982898,0.208048,96127.0,96126.0,0.037]
[1739007983203,0.208048,96127.0,96126.0,0.044]
[1739007983691,0.209048,96127.0,96126.0,0.044]
[1739007984497,0.210048,96127.0,96126.0,0.046]
[1739007986003,0.002,96127.0,96126.0,0.046]
[1739007996207,0.002,96127.0,96126.0,0.2540502]
[1739008024125,0.002,96127.0,96126.0,0.046]
[1739008024918,0.15794499,96127.0,96126.0,0.016]
[1739008028222,0.05259136,96127.0,96126.0,0.016]
[1739008028423,0.41339136,96127.0,96126.0,0.016]
[1739008036429,0.51875944,96127.0,96126.0,0.016]
[1739008039636,0.3628,96127.0,96126.0,0.016]
[1739008042839,0.5708481,96127.0,96126.0,0.016]
[1739008044131,0.002,96127.0,96126.0,0.2240502]
[1739008047836,0.002,96127.0,96126.0,0.23445591]
[1739008061648,0.002,96127.0,96126.0,0.016]